[Event "*** SCC Grand Prix: Titled Tuesday Blitz"]
[Site "Chess.com"]
[Date "2020.06.23"]
[Round "5"]
[White "sasko1234"]
[Black "Shubinkirill2003"]
[Result "0-1"]
[WhiteElo "2423"]
[BlackElo "2624"]
[TimeControl "180+1"]
[EndTime "10:57:28 PDT"]
[Termination "Shubinkirill2003 won on time"]

1. b3 {[%clk 0:03:00.9]} 1... e5 {[%clk 0:02:59.5]} 2. Bb2 {[%clk 0:03:00.7]}
2... Nc6 {[%clk 0:02:59.7]} 3. e3 {[%clk 0:03:00.7]} 3... Nf6 {[%clk 0:02:57]}
4. Nf3 {[%clk 0:03:00.5]} 4... d6 {[%clk 0:02:56.6]} 5. d4 {[%clk 0:03:00]} 5...
Bg4 {[%clk 0:02:54.9]} 6. h3 {[%clk 0:02:50.6]} 6... Bh5 {[%clk 0:02:49.7]} 7.
Be2 {[%clk 0:02:31.5]} 7... exd4 {[%clk 0:02:42.3]} 8. Nxd4 {[%clk 0:02:29.6]}
8... Bxe2 {[%clk 0:02:40.3]} 9. Qxe2 {[%clk 0:02:29.3]} 9... Nxd4 {[%clk
0:02:37.4]} 10. Bxd4 {[%clk 0:02:28.9]} 10... Be7 {[%clk 0:02:36.6]} 11. O-O
{[%clk 0:02:23.4]} 11... O-O {[%clk 0:02:36.2]} 12. c4 {[%clk 0:02:21.8]} 12...
Re8 {[%clk 0:02:33.1]} 13. Rd1 {[%clk 0:02:07.7]} 13... Nd7 {[%clk 0:02:32.1]}
14. Qf3 {[%clk 0:01:57.7]} 14... c6 {[%clk 0:02:04.1]} 15. Nd2 {[%clk
0:01:42.3]} 15... Bf8 {[%clk 0:01:57.7]} 16. Bb2 {[%clk 0:01:37.2]} 16... Qh4
{[%clk 0:01:43]} 17. Nf1 {[%clk 0:01:28.3]} 17... Ne5 {[%clk 0:01:32.6]} 18.
Bxe5 {[%clk 0:01:19]} 18... Rxe5 {[%clk 0:01:29.6]} 19. Ng3 {[%clk 0:01:14.7]}
19... Re6 {[%clk 0:01:24.8]} 20. Rd4 {[%clk 0:01:11.3]} 20... Qh6 {[%clk
0:01:15.3]} 21. Rad1 {[%clk 0:01:08.1]} 21... Rd8 {[%clk 0:01:03]} 22. Qg4
{[%clk 0:00:59]} 22... Qg6 {[%clk 0:00:57.9]} 23. Qf3 {[%clk 0:00:58.6]} 23...
Rf6 {[%clk 0:00:53.2]} 24. Qe2 {[%clk 0:00:57.9]} 24... Re6 {[%clk 0:00:52.3]}
25. Rg4 {[%clk 0:00:56.7]} 25... Qf6 {[%clk 0:00:46.9]} 26. Nh5 {[%clk
0:00:49.1]} 26... Qe5 {[%clk 0:00:45.5]} 27. Rdd4 {[%clk 0:00:41.4]} 27... f5
{[%clk 0:00:39.8]} 28. Rgf4 {[%clk 0:00:33.6]} 28... g5 {[%clk 0:00:37.8]} 29.
Qf3 {[%clk 0:00:21.1]} 29... gxf4 {[%clk 0:00:36.1]} 30. Rxf4 {[%clk 0:00:21.6]}
30... Rg6 {[%clk 0:00:30]} 31. Rxf5 {[%clk 0:00:21]} 31... Qe7 {[%clk
0:00:29.7]} 32. Nf6+ {[%clk 0:00:20.1]} 32... Kh8 {[%clk 0:00:26.7]} 33. Nh5
{[%clk 0:00:19.4]} 33... Kg8 {[%clk 0:00:21.4]} 34. Nf6+ {[%clk 0:00:18.8]}
34... Kh8 {[%clk 0:00:20.5]} 35. Nh5 {[%clk 0:00:18.8]} 35... Bg7 {[%clk
0:00:15.3]} 36. Rf7 {[%clk 0:00:18.6]} 36... Qe5 {[%clk 0:00:15.2]} 37. Nf4
{[%clk 0:00:15.7]} 37... Rf6 {[%clk 0:00:15.1]} 38. Rxb7 {[%clk 0:00:14.3]}
38... Rg8 {[%clk 0:00:14.2]} 39. Qg4 {[%clk 0:00:11.9]} 39... Bh6 {[%clk
0:00:12.7]} 40. Qd7 {[%clk 0:00:09.2]} 40... Bg7 {[%clk 0:00:10.2]} 41. Qg4
{[%clk 0:00:08.2]} 41... Qa1+ {[%clk 0:00:09.7]} 42. Kh2 {[%clk 0:00:07.7]}
42... d5 {[%clk 0:00:09.7]} 43. cxd5 {[%clk 0:00:07.2]} 43... cxd5 {[%clk
0:00:09.7]} 44. Nxd5 {[%clk 0:00:07.3]} 44... Qe5+ {[%clk 0:00:09.8]} 45. Nf4
{[%clk 0:00:07.2]} 45... a5 {[%clk 0:00:10]} 46. a4 {[%clk 0:00:05.5]} 46... Bh6
{[%clk 0:00:08.7]} 47. Qd7 {[%clk 0:00:04.2]} 47... Bg7 {[%clk 0:00:08.8]} 48.
Qg4 {[%clk 0:00:04.2]} 48... Rff8 {[%clk 0:00:08.9]} 49. Rb5 {[%clk 0:00:03.4]}
49... Qe7 {[%clk 0:00:06.7]} 50. Ng6+ {[%clk 0:00:03.4]} 50... hxg6 {[%clk
0:00:06.7]} 0-1

[Event "*** SCC Grand Prix: Titled Tuesday Blitz"]
[Site "Chess.com"]
[Date "2020.06.23"]
[Round "5"]
[White "ValentinDragnev"]
[Black "VincentKeymer"]
[Result "1-0"]
[WhiteElo "2745"]
[BlackElo "2836"]
[TimeControl "180+1"]
[EndTime "10:57:30 PDT"]
[Termination "ValentinDragnev won on time"]

1. e4 {[%clk 0:03:00.9]} 1... e6 {[%clk 0:02:59.9]} 2. d3 {[%clk 0:02:56.4]}
2... c5 {[%clk 0:02:53.6]} 3. Nf3 {[%clk 0:02:54.6]} 3... Nc6 {[%clk 0:02:52.2]}
4. g3 {[%clk 0:02:53.5]} 4... g6 {[%clk 0:02:49.7]} 5. Bg2 {[%clk 0:02:53.3]}
5... Bg7 {[%clk 0:02:49.6]} 6. O-O {[%clk 0:02:53.1]} 6... Nge7 {[%clk
0:02:48.4]} 7. c3 {[%clk 0:02:51.3]} 7... d5 {[%clk 0:02:40.9]} 8. Qe2 {[%clk
0:02:39]} 8... b6 {[%clk 0:02:31.9]} 9. e5 {[%clk 0:02:19.1]} 9... a5 {[%clk
0:02:27.4]} 10. Bf4 {[%clk 0:02:18]} 10... Ba6 {[%clk 0:02:24.7]} 11. c4 {[%clk
0:02:08.3]} 11... b5 {[%clk 0:02:13.2]} 12. Nbd2 {[%clk 0:02:03.8]} 12... Qd7
{[%clk 0:01:56.4]} 13. Rac1 {[%clk 0:02:00.6]} 13... bxc4 {[%clk 0:01:46.8]} 14.
dxc4 {[%clk 0:02:00.1]} 14... O-O {[%clk 0:01:47.3]} 15. Rfd1 {[%clk 0:01:59.1]}
15... a4 {[%clk 0:01:41.8]} 16. b3 {[%clk 0:01:49.9]} 16... Rfc8 {[%clk
0:01:21.8]} 17. Ne4 {[%clk 0:01:45.4]} 17... Qa7 {[%clk 0:01:03.5]} 18. Nd6
{[%clk 0:01:41.8]} 18... Rd8 {[%clk 0:01:02.2]} 19. Ng5 {[%clk 0:01:37]} 19...
Rf8 {[%clk 0:00:50.3]} 20. h4 {[%clk 0:01:08.2]} 20... axb3 {[%clk 0:00:47.7]}
21. axb3 {[%clk 0:01:08]} 21... h6 {[%clk 0:00:39.3]} 22. Nf3 {[%clk 0:00:59.9]}
22... Rab8 {[%clk 0:00:25.6]} 23. Qe3 {[%clk 0:00:59.4]} 23... d4 {[%clk
0:00:23.5]} 24. Qd2 {[%clk 0:00:59.6]} 24... Rxb3 {[%clk 0:00:21.2]} 25. Bxh6
{[%clk 0:00:54.1]} 25... Rxf3 {[%clk 0:00:20.5]} 26. Bxg7 {[%clk 0:00:40.5]}
26... Kxg7 {[%clk 0:00:19.8]} 27. Bxf3 {[%clk 0:00:41.1]} 27... Nxe5 {[%clk
0:00:20.1]} 28. Qe2 {[%clk 0:00:41.7]} 28... Nxf3+ {[%clk 0:00:18.3]} 29. Qxf3
{[%clk 0:00:42.6]} 29... Qd7 {[%clk 0:00:18.6]} 30. Ne4 {[%clk 0:00:36.5]} 30...
Qc6 {[%clk 0:00:18.3]} 31. Qf6+ {[%clk 0:00:33]} 31... Kg8 {[%clk 0:00:18]} 32.
Re1 {[%clk 0:00:24.4]} 32... Nf5 {[%clk 0:00:14.4]} 33. Qe5 {[%clk 0:00:19.3]}
33... Rc8 {[%clk 0:00:08.3]} 34. h5 {[%clk 0:00:17.4]} 34... Bb7 {[%clk
0:00:07.2]} 35. hxg6 {[%clk 0:00:17]} 35... fxg6 {[%clk 0:00:08.1]} 36. g4
{[%clk 0:00:14.9]} 36... Ng7 {[%clk 0:00:06.5]} 37. f3 {[%clk 0:00:13.3]} 37...
Rf8 {[%clk 0:00:06.4]} 38. Kg2 {[%clk 0:00:12.6]} 38... Ba8 {[%clk 0:00:04.7]}
39. Qg5 {[%clk 0:00:10.9]} 39... e5 {[%clk 0:00:04.5]} 40. Ra1 {[%clk
0:00:07.7]} 40... Rf7 {[%clk 0:00:02.8]} 41. Qxe5 {[%clk 0:00:07.7]} 41... Ne6
{[%clk 0:00:02.9]} 42. Rab1 {[%clk 0:00:05.8]} 42... Nf4+ {[%clk 0:00:02.7]} 43.
Kg3 {[%clk 0:00:05.5]} 43... Bb7 {[%clk 0:00:01.9]} 44. Qb8+ {[%clk 0:00:03.7]}
44... Kg7 {[%clk 0:00:01.1]} 45. Qe5+ {[%clk 0:00:03.4]} 45... Kg8 {[%clk
0:00:01.4]} 46. Rh1 {[%clk 0:00:03.1]} 46... Ne2+ {[%clk 0:00:01.1]} 47. Kf2
{[%clk 0:00:03]} 1-0

[Event "*** SCC Grand Prix: Titled Tuesday Blitz"]
[Site "Chess.com"]
[Date "2020.06.23"]
[Round "5"]
[White "MYMChessAcademy"]
[Black "m-garcett"]
[Result "0-1"]
[WhiteElo "2216"]
[BlackElo "2061"]
[TimeControl "180+1"]
[EndTime "10:57:30 PDT"]
[Termination "m-garcett won by checkmate"]

1. e4 {[%clk 0:03:00.9]} 1... c5 {[%clk 0:02:59.2]} 2. Nf3 {[%clk 0:02:57.2]}
2... d6 {[%clk 0:02:59.3]} 3. d4 {[%clk 0:02:57]} 3... cxd4 {[%clk 0:03:00.2]}
4. Nxd4 {[%clk 0:02:56.4]} 4... Nf6 {[%clk 0:03:00.6]} 5. Nc3 {[%clk 0:02:53.5]}
5... a6 {[%clk 0:03:00.6]} 6. Be2 {[%clk 0:02:52.3]} 6... e6 {[%clk 0:02:59.7]}
7. Be3 {[%clk 0:02:49.2]} 7... Nbd7 {[%clk 0:02:57.2]} 8. g4 {[%clk 0:02:48.7]}
8... e5 {[%clk 0:02:42.4]} 9. Nb3 {[%clk 0:02:46.6]} 9... h6 {[%clk 0:01:54.5]}
10. Qd2 {[%clk 0:02:34.5]} 10... b5 {[%clk 0:01:52.9]} 11. f3 {[%clk 0:02:31.1]}
11... Bb7 {[%clk 0:01:49.3]} 12. O-O-O {[%clk 0:02:29.6]} 12... Rc8 {[%clk
0:01:48.7]} 13. Kb1 {[%clk 0:02:28.8]} 13... Be7 {[%clk 0:01:42.4]} 14. h4
{[%clk 0:02:27.8]} 14... Nb6 {[%clk 0:01:27]} 15. g5 {[%clk 0:02:25]} 15... hxg5
{[%clk 0:01:17.9]} 16. hxg5 {[%clk 0:02:25.9]} 16... Rxh1 {[%clk 0:01:16.6]} 17.
Rxh1 {[%clk 0:02:25.7]} 17... Nfd7 {[%clk 0:01:16.3]} 18. g6 {[%clk 0:02:06.4]}
18... f6 {[%clk 0:01:09.5]} 19. Rh8+ {[%clk 0:02:05]} 19... Nf8 {[%clk
0:01:09.1]} 20. Na5 {[%clk 0:01:08.7]} 20... Ba8 {[%clk 0:01:04.3]} 21. f4
{[%clk 0:00:56.2]} 21... Qc7 {[%clk 0:00:41.6]} 22. fxe5 {[%clk 0:00:48.6]}
22... dxe5 {[%clk 0:00:42.5]} 23. Bh6 {[%clk 0:00:39.2]} 23... b4 {[%clk
0:00:29.4]} 24. Nd5 {[%clk 0:00:22.3]} 24... Nxd5 {[%clk 0:00:20]} 25. exd5
{[%clk 0:00:23.2]} 25... Bxd5 {[%clk 0:00:16.6]} 26. Nb3 {[%clk 0:00:15.4]}
26... Bxb3 {[%clk 0:00:14.5]} 27. axb3 {[%clk 0:00:16.3]} 27... Rd8 {[%clk
0:00:13.8]} 28. Bd3 {[%clk 0:00:12.1]} 28... Qb6 {[%clk 0:00:12.1]} 29. Be3
{[%clk 0:00:07.8]} 29... Bc5 {[%clk 0:00:09.8]} 30. Bxc5 {[%clk 0:00:07.8]}
30... Qxc5 {[%clk 0:00:10.7]} 31. Qe2 {[%clk 0:00:08.4]} 31... Qg1+ {[%clk
0:00:09.9]} 32. Ka2 {[%clk 0:00:09]} 32... Qc5 {[%clk 0:00:08.4]} 33. Qe4 {[%clk
0:00:06.5]} 33... Ke7 {[%clk 0:00:08.1]} 34. Qc4 {[%clk 0:00:03.3]} 34... Qxc4
{[%clk 0:00:07.6]} 35. Bxc4 {[%clk 0:00:04.2]} 35... Nxg6 {[%clk 0:00:06.5]} 36.
Rh1 {[%clk 0:00:05.1]} 36... Rd6 {[%clk 0:00:06.1]} 37. Rg1 {[%clk 0:00:05.9]}
37... f5 {[%clk 0:00:04.9]} 38. Rf1 {[%clk 0:00:05.4]} 38... Kf6 {[%clk
0:00:05.2]} 39. Bd3 {[%clk 0:00:05.6]} 39... f4 {[%clk 0:00:05.2]} 40. Bxg6
{[%clk 0:00:04.9]} 40... Kxg6 {[%clk 0:00:04.9]} 41. Rg1+ {[%clk 0:00:05.8]}
41... Kf6 {[%clk 0:00:04.8]} 42. Rf1 {[%clk 0:00:06.7]} 42... g5 {[%clk
0:00:05]} 43. Rf2 {[%clk 0:00:07.1]} 43... g4 {[%clk 0:00:05.1]} 44. Rg2 {[%clk
0:00:08]} 44... g3 {[%clk 0:00:05.2]} 45. Rg1 {[%clk 0:00:08.9]} 45... Kf5
{[%clk 0:00:05.6]} 46. Rf1 {[%clk 0:00:09]} 46... Kg4 {[%clk 0:00:05.9]} 47. Rg1
{[%clk 0:00:09.1]} 47... f3 {[%clk 0:00:06.4]} 48. Rf1 {[%clk 0:00:09.3]} 48...
f2 {[%clk 0:00:06.6]} 49. Rg1 {[%clk 0:00:09.7]} 49... Kf3 {[%clk 0:00:06.7]}
50. Rg2 {[%clk 0:00:09.1]} 50... Kxg2 {[%clk 0:00:06.5]} 51. c3 {[%clk
0:00:09.6]} 51... f1=Q {[%clk 0:00:06.7]} 52. cxb4 {[%clk 0:00:09.6]} 52... Qe1
{[%clk 0:00:06.3]} 53. Ka3 {[%clk 0:00:10.5]} 53... Qe3 {[%clk 0:00:05.9]} 54.
Ka4 {[%clk 0:00:11.4]} 54... Qb6 {[%clk 0:00:06.1]} 55. Ka3 {[%clk 0:00:11.3]}
55... Qb5 {[%clk 0:00:06.2]} 56. Ka2 {[%clk 0:00:12.2]} 56... Qxb4 {[%clk
0:00:06.5]} 57. Ka1 {[%clk 0:00:13.1]} 57... Qxb3 {[%clk 0:00:06.6]} 58. Kb1
{[%clk 0:00:13.2]} 58... Rd1# {[%clk 0:00:07]} 0-1

[Event "*** SCC Grand Prix: Titled Tuesday Blitz"]
[Site "Chess.com"]
[Date "2020.06.23"]
[Round "5"]
[White "cukin84"]
[Black "SARGISMV"]
[Result "0-1"]
[WhiteElo "2167"]
[BlackElo "2442"]
[TimeControl "180+1"]
[EndTime "10:57:32 PDT"]
[Termination "SARGISMV won on time"]

1. e4 {[%clk 0:03:00.9]} 1... c5 {[%clk 0:02:56.5]} 2. Nc3 {[%clk 0:03:00.3]}
2... Nc6 {[%clk 0:02:57.4]} 3. Bb5 {[%clk 0:02:59.4]} 3... g6 {[%clk 0:02:57.3]}
4. Bxc6 {[%clk 0:02:59.4]} 4... dxc6 {[%clk 0:02:57.1]} 5. d3 {[%clk 0:02:59.6]}
5... Bg7 {[%clk 0:02:57.7]} 6. f4 {[%clk 0:02:59.5]} 6... Nf6 {[%clk 0:02:54.4]}
7. Nf3 {[%clk 0:02:57.9]} 7... O-O {[%clk 0:02:54.9]} 8. O-O {[%clk 0:02:31.4]}
8... b6 {[%clk 0:02:29.8]} 9. Qe1 {[%clk 0:02:25.3]} 9... a5 {[%clk 0:02:20.7]}
10. a4 {[%clk 0:02:23.5]} 10... Ba6 {[%clk 0:02:20.3]} 11. b3 {[%clk 0:02:22.7]}
11... Nh5 {[%clk 0:01:48.2]} 12. g4 {[%clk 0:02:12.6]} 12... Nf6 {[%clk
0:01:44.3]} 13. g5 {[%clk 0:02:12.2]} 13... Nh5 {[%clk 0:01:43.2]} 14. Bd2
{[%clk 0:01:52.4]} 14... Bc8 {[%clk 0:01:17.9]} 15. Nh4 {[%clk 0:01:35.1]} 15...
Bh3 {[%clk 0:01:02.8]} 16. Rf3 {[%clk 0:01:31.9]} 16... Bg4 {[%clk 0:01:02.7]}
17. Rf2 {[%clk 0:01:29.1]} 17... Bd4 {[%clk 0:00:53.8]} 18. Kh1 {[%clk
0:01:19.2]} 18... e5 {[%clk 0:00:43]} 19. f5 {[%clk 0:01:17]} 19... Bxf2 {[%clk
0:00:19.8]} 20. Qxf2 {[%clk 0:01:16.4]} 20... Qd4 {[%clk 0:00:14.4]} 21. Qg2
{[%clk 0:01:07.4]} 21... gxf5 {[%clk 0:00:10.9]} 22. exf5 {[%clk 0:01:05]} 22...
Ng7 {[%clk 0:00:09.3]} 23. Rf1 {[%clk 0:01:02]} 23... f6 {[%clk 0:00:08.7]} 24.
h3 {[%clk 0:00:58.2]} 24... Bh5 {[%clk 0:00:07.9]} 25. gxf6 {[%clk 0:00:57.6]}
25... Rxf6 {[%clk 0:00:07.6]} 26. Ne4 {[%clk 0:00:52]} 26... Rf7 {[%clk
0:00:03.9]} 27. f6 {[%clk 0:00:51.7]} 27... Kh8 {[%clk 0:00:03.7]} 28. fxg7+
{[%clk 0:00:51.6]} 28... Rxg7 {[%clk 0:00:04.6]} 29. Qxg7+ {[%clk 0:00:49.6]}
29... Kxg7 {[%clk 0:00:04.5]} 30. Nf5+ {[%clk 0:00:49.7]} 30... Kg6 {[%clk
0:00:04.1]} 31. Nxd4 {[%clk 0:00:47]} 31... cxd4 {[%clk 0:00:05]} 32. Rg1+
{[%clk 0:00:42.7]} 32... Kf7 {[%clk 0:00:05]} 33. Kh2 {[%clk 0:00:38.6]} 33...
Bg6 {[%clk 0:00:04.9]} 34. Nd6+ {[%clk 0:00:38]} 34... Ke6 {[%clk 0:00:05.2]}
35. Nc4 {[%clk 0:00:37.1]} 35... Rb8 {[%clk 0:00:04.4]} 36. Re1 {[%clk
0:00:32.4]} 36... e4 {[%clk 0:00:04.6]} 37. dxe4 {[%clk 0:00:30.7]} 37... b5
{[%clk 0:00:05.5]} 38. Nxa5 {[%clk 0:00:29]} 38... bxa4 {[%clk 0:00:04.8]} 39.
bxa4 {[%clk 0:00:25.7]} 39... Kd6 {[%clk 0:00:03.9]} 40. e5+ {[%clk 0:00:23.6]}
40... Kd5 {[%clk 0:00:03.9]} 41. e6 {[%clk 0:00:23.5]} 41... Re8 {[%clk
0:00:03.8]} 42. e7 {[%clk 0:00:23]} 42... c5 {[%clk 0:00:02.9]} 43. Bg5 {[%clk
0:00:22.4]} 43... Bxc2 {[%clk 0:00:02]} 44. Rf1 {[%clk 0:00:21.5]} 44... Bxa4
{[%clk 0:00:02.1]} 45. Rf8 {[%clk 0:00:18.8]} 45... c4 {[%clk 0:00:02.3]} 46.
Rf5+ {[%clk 0:00:14.1]} 46... Ke4 {[%clk 0:00:02.2]} 47. Rf1 {[%clk 0:00:08.8]}
47... c3 {[%clk 0:00:02.1]} 48. Nc4 {[%clk 0:00:08.2]} 48... Kd3 {[%clk
0:00:02.2]} 49. Nd6 {[%clk 0:00:07.8]} 49... Ra8 {[%clk 0:00:02.7]} 50. h4
{[%clk 0:00:03]} 50... Kc2 {[%clk 0:00:03]} 0-1

[Event "*** SCC Grand Prix: Titled Tuesday Blitz"]
[Site "Chess.com"]
[Date "2020.06.23"]
[Round "5"]
[White "wonderfultime"]
[Black "Khvicha_Supatashvili"]
[Result "1-0"]
[WhiteElo "2961"]
[BlackElo "2646"]
[TimeControl "180+1"]
[EndTime "10:57:33 PDT"]
[Termination "wonderfultime won on time"]

1. d4 {[%clk 0:03:00.4]} 1... Nf6 {[%clk 0:02:59.4]} 2. Nf3 {[%clk 0:02:59.2]}
2... d5 {[%clk 0:02:58.6]} 3. Bf4 {[%clk 0:02:57.4]} 3... c5 {[%clk 0:02:57.1]}
4. c3 {[%clk 0:02:57.6]} 4... Nc6 {[%clk 0:02:56.1]} 5. e3 {[%clk 0:02:58.2]}
5... Qb6 {[%clk 0:02:56.1]} 6. Qc2 {[%clk 0:02:58]} 6... g6 {[%clk 0:02:53.1]}
7. Nbd2 {[%clk 0:02:57.6]} 7... Bf5 {[%clk 0:02:52.5]} 8. dxc5 {[%clk
0:02:57.4]} 8... Qxc5 {[%clk 0:02:51.4]} 9. Qb3 {[%clk 0:02:57.3]} 9... Qb6
{[%clk 0:02:38]} 10. Be2 {[%clk 0:02:55.7]} 10... Bg7 {[%clk 0:02:37.1]} 11. O-O
{[%clk 0:02:56]} 11... O-O {[%clk 0:02:37.2]} 12. h3 {[%clk 0:02:56.7]} 12...
Rfe8 {[%clk 0:02:26.3]} 13. Rfd1 {[%clk 0:02:32.1]} 13... e5 {[%clk 0:02:23.2]}
14. Bh2 {[%clk 0:02:32.3]} 14... Rad8 {[%clk 0:02:11.8]} 15. Rac1 {[%clk
0:02:23.6]} 15... Qxb3 {[%clk 0:02:06.8]} 16. Nxb3 {[%clk 0:02:22.1]} 16... Ne4
{[%clk 0:02:00.5]} 17. Nfd2 {[%clk 0:02:05.9]} 17... Nd6 {[%clk 0:01:17.7]} 18.
Bf3 {[%clk 0:01:56.5]} 18... e4 {[%clk 0:00:58.7]} 19. Be2 {[%clk 0:01:52.7]}
19... Ne5 {[%clk 0:00:53.6]} 20. Nd4 {[%clk 0:01:48.2]} 20... Bd7 {[%clk
0:00:51.8]} 21. b3 {[%clk 0:01:44.6]} 21... Rc8 {[%clk 0:00:48.3]} 22. c4 {[%clk
0:01:44.9]} 22... dxc4 {[%clk 0:00:47.9]} 23. bxc4 {[%clk 0:01:45.5]} 23... b6
{[%clk 0:00:42.6]} 24. N4b3 {[%clk 0:01:35.1]} 24... Ba4 {[%clk 0:00:38.7]} 25.
Rc2 {[%clk 0:01:28.2]} 25... f5 {[%clk 0:00:37.5]} 26. Rb1 {[%clk 0:01:26.7]}
26... Nb7 {[%clk 0:00:36.3]} 27. g4 {[%clk 0:01:19.8]} 27... Nd3 {[%clk
0:00:34.6]} 28. gxf5 {[%clk 0:01:02.5]} 28... gxf5 {[%clk 0:00:34.3]} 29. Nf1
{[%clk 0:01:03.1]} 29... Be5 {[%clk 0:00:21.7]} 30. Ng3 {[%clk 0:01:02]} 30...
Rf8 {[%clk 0:00:21]} 31. Rd2 {[%clk 0:01:00.5]} 31... Nbc5 {[%clk 0:00:14.6]}
32. Nxc5 {[%clk 0:00:57.9]} 32... Nxc5 {[%clk 0:00:14]} 33. Rd5 {[%clk
0:00:57.6]} 33... Rce8 {[%clk 0:00:14]} 34. Kh1 {[%clk 0:00:52.6]} 34... Bc6
{[%clk 0:00:13.4]} 35. Rd2 {[%clk 0:00:52.5]} 35... f4 {[%clk 0:00:13.2]} 36.
Nh5 {[%clk 0:00:47.8]} 36... f3 {[%clk 0:00:11]} 37. Bd1 {[%clk 0:00:44.2]}
37... Bxh2 {[%clk 0:00:10.3]} 38. Kxh2 {[%clk 0:00:45.1]} 38... Rd8 {[%clk
0:00:09.5]} 39. Rbb2 {[%clk 0:00:41]} 39... Kf7 {[%clk 0:00:08.3]} 40. Nf4
{[%clk 0:00:37]} 40... Kf6 {[%clk 0:00:07.9]} 41. Bb3 {[%clk 0:00:31.8]} 41...
Ke5 {[%clk 0:00:07.6]} 42. Rbc2 {[%clk 0:00:30]} 42... Rg8 {[%clk 0:00:06.8]}
43. Rxd8 {[%clk 0:00:26.8]} 43... Rxd8 {[%clk 0:00:06.1]} 44. Kg3 {[%clk
0:00:26.6]} 44... Rd1 {[%clk 0:00:05.2]} 45. Kh4 {[%clk 0:00:23.7]} 45... Nd3
{[%clk 0:00:03]} 46. Rc3 {[%clk 0:00:19.1]} 46... Rd2 {[%clk 0:00:02.1]} 47.
Nxd3+ {[%clk 0:00:18.6]} 47... exd3 {[%clk 0:00:02.4]} 48. Kg3 {[%clk
0:00:18.7]} 48... Be4 {[%clk 0:00:02.5]} 49. c5 {[%clk 0:00:19.2]} 49... bxc5
{[%clk 0:00:01.6]} 50. Rxc5+ {[%clk 0:00:20.1]} 50... Kd6 {[%clk 0:00:02.4]} 51.
Rc4 {[%clk 0:00:20.7]} 51... Ke5 {[%clk 0:00:02.3]} 52. Rc5+ {[%clk 0:00:18.9]}
52... Kd6 {[%clk 0:00:02.4]} 53. Rc8 {[%clk 0:00:18.2]} 53... Rb2 {[%clk
0:00:01.6]} 54. Kf4 {[%clk 0:00:17.6]} 1-0

[Event "*** SCC Grand Prix: Titled Tuesday Blitz"]
[Site "Chess.com"]
[Date "2020.06.23"]
[Round "5"]
[White "dey2580"]
[Black "Dmitry_Konenkin"]
[Result "1-0"]
[WhiteElo "2552"]
[BlackElo "2385"]
[TimeControl "180+1"]
[EndTime "10:57:33 PDT"]
[Termination "dey2580 won by resignation"]

1. d4 {[%clk 0:03:00.9]} 1... d6 {[%clk 0:03:00.1]} 2. Nf3 {[%clk 0:02:59.6]}
2... Bg4 {[%clk 0:02:59.6]} 3. Nbd2 {[%clk 0:02:56.3]} 3... Nd7 {[%clk
0:02:59.8]} 4. b3 {[%clk 0:02:52.8]} 4... e5 {[%clk 0:02:58.9]} 5. Bb2 {[%clk
0:02:52.7]} 5... Bxf3 {[%clk 0:02:52.6]} 6. exf3 {[%clk 0:02:35.7]} 6... Ngf6
{[%clk 0:02:51.8]} 7. Be2 {[%clk 0:02:31.2]} 7... Be7 {[%clk 0:02:51.9]} 8. O-O
{[%clk 0:02:31.2]} 8... O-O {[%clk 0:02:52.1]} 9. dxe5 {[%clk 0:02:31.4]} 9...
Nxe5 {[%clk 0:02:44.9]} 10. f4 {[%clk 0:02:31.3]} 10... Ng6 {[%clk 0:02:43.9]}
11. g3 {[%clk 0:02:31.3]} 11... Nd7 {[%clk 0:02:41.7]} 12. Bf3 {[%clk
0:02:30.5]} 12... Rb8 {[%clk 0:02:40.2]} 13. Nc4 {[%clk 0:02:19]} 13... Bf6
{[%clk 0:02:38.3]} 14. Qc1 {[%clk 0:01:11.9]} 14... Nc5 {[%clk 0:02:11.2]} 15.
Rd1 {[%clk 0:01:07.5]} 15... Re8 {[%clk 0:01:57.3]} 16. a4 {[%clk 0:00:59.1]}
16... Qe7 {[%clk 0:01:35.6]} 17. Ne3 {[%clk 0:00:52.5]} 17... Nd7 {[%clk
0:00:51.9]} 18. Nd5 {[%clk 0:00:44.2]} 18... Qd8 {[%clk 0:00:51.9]} 19. c4
{[%clk 0:00:38.8]} 19... c6 {[%clk 0:00:50.6]} 20. Ne3 {[%clk 0:00:36]} 20...
Nc5 {[%clk 0:00:43.5]} 21. Qc2 {[%clk 0:00:29.9]} 21... Qc7 {[%clk 0:00:40]} 22.
Bxf6 {[%clk 0:00:24.2]} 22... gxf6 {[%clk 0:00:40.9]} 23. Qc3 {[%clk 0:00:23.3]}
23... Nf8 {[%clk 0:00:14.7]} 24. b4 {[%clk 0:00:22.2]} 24... Ne4 {[%clk
0:00:14.4]} 25. Bxe4 {[%clk 0:00:22.3]} 25... Rxe4 {[%clk 0:00:15.3]} 26. Qxf6
{[%clk 0:00:22.8]} 26... Qe7 {[%clk 0:00:14.9]} 27. Qxe7 {[%clk 0:00:21.3]}
27... Rxe7 {[%clk 0:00:15.8]} 28. Rxd6 {[%clk 0:00:21.4]} 28... Re4 {[%clk
0:00:15.3]} 29. Rad1 {[%clk 0:00:21.2]} 29... Ne6 {[%clk 0:00:15.3]} 30. Rd7
{[%clk 0:00:20.6]} 30... a5 {[%clk 0:00:14.8]} 31. bxa5 {[%clk 0:00:20.2]} 31...
Nc5 {[%clk 0:00:15.2]} 32. Rc7 {[%clk 0:00:19.4]} 32... Nxa4 {[%clk 0:00:14.4]}
33. Rdd7 {[%clk 0:00:19.5]} 33... Rf8 {[%clk 0:00:13.9]} 34. Nf5 {[%clk
0:00:19.1]} 34... Rxc4 {[%clk 0:00:11]} 35. Rxf7 {[%clk 0:00:17.6]} 35... Rxf7
{[%clk 0:00:10.8]} 36. Nh6+ {[%clk 0:00:17.9]} 36... Kg7 {[%clk 0:00:11.3]} 37.
Nxf7 {[%clk 0:00:18.6]} 37... Kf6 {[%clk 0:00:11.9]} 38. Ne5 {[%clk 0:00:18.6]}
38... Rc1+ {[%clk 0:00:11.4]} 39. Kg2 {[%clk 0:00:19.1]} 39... Nc5 {[%clk
0:00:11.9]} 40. Rxh7 {[%clk 0:00:19]} 40... Ne4 {[%clk 0:00:11.9]} 41. Rf7+
{[%clk 0:00:18]} 41... Ke6 {[%clk 0:00:11.4]} 42. Rxb7 {[%clk 0:00:18.2]} 42...
Rc2 {[%clk 0:00:11.9]} 43. Kf3 {[%clk 0:00:17.7]} 43... Nxf2 {[%clk 0:00:11.5]}
44. Rb6 {[%clk 0:00:17.2]} 44... Kd5 {[%clk 0:00:11.4]} 45. Rxc6 {[%clk
0:00:16.7]} 45... Ra2 {[%clk 0:00:08.1]} 46. Rc3 {[%clk 0:00:14.8]} 46... Nd1
{[%clk 0:00:07.6]} 47. Rd3+ {[%clk 0:00:15.1]} 47... Ke6 {[%clk 0:00:07.1]} 48.
Rxd1 {[%clk 0:00:16]} 48... Rxa5 {[%clk 0:00:07.6]} 49. h4 {[%clk 0:00:16.4]}
49... Ra3+ {[%clk 0:00:08.5]} 50. Kg4 {[%clk 0:00:16.7]} 50... Kf6 {[%clk
0:00:09.1]} 51. h5 {[%clk 0:00:17.3]} 51... Kg7 {[%clk 0:00:09.5]} 52. Rd7+
{[%clk 0:00:16.7]} 52... Kf6 {[%clk 0:00:09.1]} 53. Rd6+ {[%clk 0:00:17.6]}
53... Ke7 {[%clk 0:00:09.3]} 54. Rg6 {[%clk 0:00:17.4]} 54... Ra1 {[%clk
0:00:08.5]} 55. h6 {[%clk 0:00:17.9]} 55... Rh1 {[%clk 0:00:09.4]} 56. Kg5
{[%clk 0:00:17.3]} 56... Rh3 {[%clk 0:00:09.8]} 57. g4 {[%clk 0:00:17.8]} 57...
Kf8 {[%clk 0:00:10]} 58. Rg7 {[%clk 0:00:17.3]} 58... Re3 {[%clk 0:00:09.2]} 59.
Ng6+ {[%clk 0:00:17.6]} 59... Ke8 {[%clk 0:00:08.7]} 60. h7 {[%clk 0:00:18.1]}
1-0